fUSD/lending_fUSD_20240620
["ID","MTS","AMOUNT","RATE_DAILY","PERIOD"]
[329968870,1718880646821,-3916.39,0.00013972,2]
[329968871,1718880646830,-500.0,0.00013972,2]
[329968872,1718880646841,-17894.13,0.00013972,2]
[329968873,1718880646851,-1041.3,0.00013972,2]
[329968874,1718880646860,-500.0,0.00013972,2]
[329968875,1718880646869,-532.67,0.00013972,2]
[329968876,1718880646879,-1136.66,0.00013972,2]
[329968877,1718880646888,-500.0,0.00013972,2]
[329968878,1718880646898,-976.86,0.00013972,2]
[329968879,1718880646907,-7269.07,0.00013972,2]
[329968880,1718880646917,-500.0,0.00013972,2]
[329968881,1718880646926,-1360.74,0.00013972,2]
[329968882,1718880646935,-6672.78,0.00013972,2]
[329968883,1718880646945,-24475.75,0.00013972,2]
[329968884,1718880647034,-500.0,0.00013972,2]
[329968885,1718880647045,-151.0,0.00013972,2]
[329968886,1718880647056,-2986.21,0.00013972,2]
[329968887,1718880647066,-500.0,0.00013972,2]
[329968888,1718880647076,-836.85,0.00013972,2]
[329968889,1718880647085,-1086.41,0.00013972,2]
[329968890,1718880647094,-1262.23,0.00013972,2]
[329968891,1718880647104,-2769.32,0.00013972,2]
[329968892,1718880647114,-500.0,0.00013972,2]
[329968893,1718880647124,-1518.4,0.00013972,2]
[329968894,1718880647133,-699.37,0.00013972,2]
[329968895,1718880647142,-1036.38,0.00013972,2]
[329968896,1718880647151,-500.0,0.00013972,2]
[329968897,1718880647160,-500.0,0.00013972,2]
[329968898,1718880647169,-828.36,0.00013972,2]
[329968899,1718880647179,-633.38,0.00013972,2]
[329968900,1718880647189,-500.0,0.00013972,2]
[329968901,1718880647199,-151.0,0.00013972,2]
[329968902,1718880647208,-159.722518,0.00013972,2]
[329968903,1718880647218,-771.86,0.00013972,2]
[329968904,1718880647228,-1394.57,0.00013972,2]
[329968905,1718880647237,-1804.67,0.00013972,2]
[329968906,1718880647247,-1564.37,0.00013972,2]
[329968907,1718880647256,-247.903222,0.00013972,2]
[329968908,1718880647266,-500.0,0.00013972,2]
[329968909,1718880647275,-540.42985901,0.00013972,2]
[329968910,1718880647284,-580.49,0.00013972,2]
[329968911,1718880647294,-538.4,0.00013972,2]
[329968912,1718880647304,-528.75,0.00013972,2]
[329968913,1718880647313,-500.0,0.00013972,2]
[329968914,1718880647323,-500.0,0.00013972,2]
[329968915,1718880647333,-530.95,0.00013972,2]
[329968916,1718880647342,-10731.86,0.00013972,2]
[329968917,1718880647351,-6988.0,0.00013972,2]
[329968918,1718880647361,-1518.09,0.00013972,2]
[329968919,1718880647370,-500.0,0.00013972,2]
[329968920,1718880647379,-500.0,0.00013972,2]
[329968921,1718880647388,-682.5,0.00013972,2]
[329968922,1718880647397,-500.0,0.00013972,2]
[329968923,1718880647407,-6096.85,0.00013972,2]
[329968924,1718880647417,-1940.93,0.00013972,2]
[329968925,1718880647426,-758.77,0.00013972,2]
[329968926,1718880647435,-834.57,0.00013972,2]
[329968927,1718880647444,-4499.82,0.00013972,2]
[329968928,1718880647453,-2976.7,0.00013972,2]
[329968929,1718880647462,-500.0,0.00013972,2]
[329968930,1718880647472,-500.0,0.00013972,2]
[329968931,1718880647481,-500.0,0.00013972,2]
[329968932,1718880647491,-1046.2,0.00013972,2]
[329968933,1718880647500,-1046.74,0.00013972,2]
[329968934,1718880647509,-500.0,0.00013972,2]
[329968935,1718880647519,-691.94,0.00013972,2]
[329968936,1718880647528,-500.0,0.00013972,2]
[329968937,1718880647538,-2182.04,0.00013972,2]
[329968938,1718880647548,-1330.09,0.00013972,2]
[329968939,1718880647558,-698.15,0.00013972,2]
[329968940,1718880647568,-632.28,0.00013972,2]
[329968941,1718880647577,-1392.17,0.00013972,2]
[329968942,1718880647586,-2881.72,0.00013972,2]
[329968943,1718880647596,-780.11,0.00013972,2]
[329968944,1718880647604,-941.35,0.00013972,2]
[329968945,1718880647614,-500.0,0.00013972,2]
[329968946,1718880647623,-500.0,0.00013972,2]
[329968947,1718880647632,-1022.23,0.00013972,2]
[329968948,1718880647642,-1194.95,0.00013972,2]
[329968949,1718880647651,-567.04,0.00013972,2]
[329968950,1718880647660,-500.0,0.00013972,2]
[329968951,1718880647670,-248.35405456,0.00013972,2]
[329968952,1718880647679,-12601.75,0.00013972,2]
[329968953,1718880647688,-1439.49,0.00013972,2]
[329968954,1718880647696,-838.59,0.00013972,2]
[329968955,1718880647706,-500.0,0.00013972,2]
[329968956,1718880647715,-665.58,0.00013972,2]
[329968957,1718880647724,-1240.66,0.00013972,2]
[329968958,1718880647734,-151.0,0.00013972,2]
[329968959,1718880647743,-3764.8,0.00013972,2]
[329968960,1718880647752,-4981.82,0.00013972,2]
[329968961,1718880647761,-1641.84,0.00013972,2]
[329968962,1718880647770,-500.0,0.00013972,2]
[329968963,1718880647779,-500.0,0.00013972,2]
[329968964,1718880647789,-500.0,0.00013972,2]
[329968965,1718880647798,-500.0,0.00013972,2]
[329968966,1718880647808,-500.0,0.00013972,2]
[329968967,1718880647817,-980.53,0.00013972,2]
[329968968,1718880647826,-500.0,0.00013972,2]
[329968969,1718880647835,-3394.27,0.00013972,2]
[329968970,1718880647844,-2581.05,0.00013972,2]
[329968971,1718880647853,-500.0,0.00013972,2]
[329968972,1718880647862,-1626.64,0.00013972,2]
[329968973,1718880647872,-3932.35,0.00013972,2]
[329968974,1718880647881,-2412.07,0.00013972,2]
[329968975,1718880647890,-500.0,0.00013972,2]
[329968976,1718880647900,-4950.06,0.00013972,2]
[329968977,1718880647909,-2379.75,0.00013972,2]
[329968978,1718880647924,-151.0,0.00013972,2]
[329968979,1718880647933,-616.2,0.00013972,2]
[329968980,1718880647943,-500.0,0.00013972,2]
[329968981,1718880647952,-500.0,0.00013972,2]
[329968982,1718880647962,-1168.25,0.00013972,2]
[329968983,1718880647971,-3011.32,0.00013972,2]
[329968984,1718880647981,-2484.77,0.00013972,2]
[329968985,1718880647990,-1557.4,0.00013972,2]
[329968986,1718880647999,-1263.59,0.00013972,2]
[329968987,1718880648009,-500.0,0.00013972,2]
[329968988,1718880648019,-500.0,0.00013972,2]
[329968989,1718880648032,-2023.09,0.00013972,2]
[329968990,1718880648042,-1720.14,0.00013972,2]
[329968991,1718880648051,-500.0,0.00013972,2]
[329968992,1718880648063,-2649.12,0.00013972,2]
[329968993,1718880648074,-1234.79,0.00013972,2]
[329968994,1718880648083,-500.0,0.00013972,2]
[329968995,1718880648093,-500.0,0.00013972,2]
[329968996,1718880648103,-500.0,0.00013972,2]
[329968997,1718880648114,-500.0,0.00013972,2]
[329968998,1718880648124,-7997.22,0.00013972,2]
[329968999,1718880648133,-1908.05,0.00013972,2]
[329969000,1718880648143,-151.0,0.00013972,2]
[329969001,1718880648152,-151.0,0.00013972,2]
[329969002,1718880648162,-1555.71,0.00013972,2]
[329969003,1718880648174,-151.0,0.00013972,2]
[329969004,1718880648183,-3834.94,0.00013972,2]
[329969005,1718880648192,-629.18,0.00013972,2]
[329969006,1718880648201,-151.0,0.00013972,2]
[329969007,1718880648210,-188.67139,0.00013972,2]
[329969008,1718880648220,-500.0,0.00013972,2]
[329969009,1718880648229,-2088.24,0.00013972,2]
[329969010,1718880648239,-2578.68,0.00013972,2]
[329969011,1718880648248,-500.0,0.00013972,2]
[329969012,1718880648269,-10650.52,0.00013972,2]
[329969013,1718880648279,-2573.18,0.00013972,2]
[329969014,1718880648288,-500.0,0.00013972,2]
[329969015,1718880648298,-519.37,0.00013972,2]
[329969016,1718880648307,-327.6908748,0.00013972,2]
[329969017,1718880648318,-1512.23,0.00013972,2]
[329969018,1718880648327,-2172.36,0.00013972,2]
[329969019,1718880648336,-500.0,0.00013972,2]
[329969020,1718880648346,-500.0,0.00013972,2]
[329969021,1718880648356,-1537.65,0.00013972,2]
[329969022,1718880648364,-2852.21,0.00013972,2]
[329969023,1718880648373,-7016.09,0.00013972,2]
[329969024,1718880648383,-509.89,0.00013972,2]
[329969025,1718880648392,-2672.44,0.00013972,2]
[329969026,1718880648401,-2883.0,0.00013972,2]
[329969027,1718880648410,-2921.55,0.00013972,2]
[329969028,1718880648420,-1821.14,0.00013972,2]
[329969029,1718880648429,-803.46,0.00013972,2]
[329969030,1718880648438,-151.0,0.00013972,2]
[329969031,1718880648447,-3632.35,0.00013972,2]
[329969032,1718880648455,-500.0,0.00013972,2]
[329969033,1718880648465,-500.0,0.00013972,2]
[329969034,1718880648474,-500.0,0.00013972,2]
[329969035,1718880648483,-626.98,0.00013972,2]
[329969036,1718880648492,-500.0,0.00013972,2]
[329969037,1718880648501,-1714.86,0.00013972,2]
[329969038,1718880648510,-951.09,0.00013972,2]
[329969039,1718880648520,-2446.79,0.00013972,2]
[329969040,1718880648529,-1318.03,0.00013972,2]
[329969041,1718880648539,-530.22,0.00013972,2]
[329969042,1718880648548,-500.0,0.00013972,2]
[329969043,1718880648557,-500.0,0.00013972,2]
[329969044,1718880648566,-1108.69,0.00013972,2]
[329969045,1718880648575,-500.0,0.00013972,2]
[329969046,1718880648584,-1630.31,0.00013972,2]
[329969047,1718880648594,-500.0,0.00013972,2]
[329969048,1718880648603,-837.04,0.00013972,2]
[329969049,1718880648613,-1928.45,0.00013972,2]
[329969050,1718880648623,-599.56,0.00013972,2]
[329969051,1718880648632,-3646.44,0.00013972,2]
[329969052,1718880648641,-538.51,0.00013972,2]
[329969053,1718880648650,-1321.41,0.00013972,2]
[329969054,1718880648659,-151.0,0.00013972,2]
[329969055,1718880648668,-508.33,0.00013972,2]
[329969056,1718880648677,-151.0,0.00013972,2]
[329969057,1718880648686,-151.0,0.00013972,2]
[329969058,1718880648695,-500.0,0.00013972,2]
[329969059,1718880648705,-4406.23,0.00013972,2]
[329969060,1718880648714,-3217.25,0.00013972,2]
[329969061,1718880648724,-1541.237098,0.00013973,2]
[329969062,1718880648733,-284.52725543,0.0001398,2]
[329969063,1718880648742,-151.0,0.00013989,2]
[329969064,1718880648752,-1621.858263,0.00013989,2]
[329969065,1718880648761,-1702.0405384,0.00013989,2]
[329969066,1718880648788,-1853.5523006,0.00013989,2]
[329969067,1718880648797,-5490.6181905,0.00013989,2]
[329969068,1718880648806,-41117.1219862,0.00013989,2]
[329969069,1718880648815,-1933.73936278,0.00013989,2]
[329969070,1718880648824,-158.54784222,0.0001399,2]
[329969071,1718880648834,-9518.02469868,0.00013991,2]
[329969072,1718880648843,-2235.00548614,0.00013998,2]
[329969073,1718880648852,-255.16140311,0.00013999,2]
[329969074,1718880648861,-349.70491421,0.00013999,5]
[329969075,1718880648871,-61033.74072306,0.00014,2]
[329969076,1718880649252,-967.5007119,0.00014,2]
[329969077,1718880649264,-2348.40046312,0.00014,2]
[329969078,1718880649276,-490.1733676,0.00014,2]
[329969079,1718880649372,-500.0,0.00013972,2]
[329969080,1718880649381,-181271.56179283,0.00014,2]
[329969081,1718880649392,-1461.37030811,0.00014,2]
[329969082,1718880649404,-405.8833334,0.00014,2]
[329969083,1718880649416,-2836.54204063,0.00014,2]
[329969084,1718880649539,-315.12551704,0.00013598,2]
[329969085,1718880649548,-2572.55256872,0.00014,2]
[329969086,1718880649596,-6800.76942916,0.00014,2]
[329969087,1718880649608,-108835.80254294,0.00014,2]
[329969088,1718880649618,-420672.43540937,0.00014,2]
[329969089,1718880649629,-759.12799982,0.00014,2]
[329969090,1718880650402,-99489.17275931,0.00014,2]
[329969091,1718880650412,-2000.0,0.00014,2]
[329969092,1718880650421,-2000.0,0.00014,2]
[329969093,1718880650430,-1000.0,0.00014,2]
[329969094,1718880650547,-2510.47305636,0.00014,2]
[329969095,1718880650567,-573453.59563692,0.00014,2]
[329969096,1718880650576,-150366.15513706,0.00014,2]
[329969097,1718880650586,-8000.39,0.00014,2]
[329969098,1718880650596,-223105.53561768,0.00014,2]
[329969099,1718880650645,-7395.42336083,0.00014,2]
[329969100,1718880650658,-4043.23692891,0.00014,2]
[329969101,1718880651047,-315.12551696,0.00013716,2]
[329969102,1718880651056,-19435.69475894,0.00014,2]
[329969103,1718880651065,-320.53650672,0.00014,2]
[329969104,1718880651074,-192137.1486297,0.00014,2]
[329969105,1718880651085,-1500.0,0.00014,2]
[329969106,1718880651096,-167630.45449776,0.00014,2]
[329969107,1718880651118,-369187.33758695,0.00014,2]
[329969108,1718880651130,-1383.76658919,0.00014,2]
[329969115,1718880869515,156.062019,0.00025,70]
[329969117,1718881317017,10000.0,0.00026,90]
[329969118,1718881340202,5206.39922575,0.00026,90]
[329969119,1718881367290,10000.0,0.00025,60]
[329969120,1718881469614,4793.6,0.00025,60]
[329969124,1718881646027,213.04,0.00025,60]
[329969125,1718881741895,30000.0,0.0001,2]
[329969135,1718881823471,28000.0,0.0001,2]
[329969138,1718881831798,-425.06,0.00010752,2]
[329969139,1718881831808,-347.48,0.00010959,2]
[329969141,1718881831817,-442.71754,0.00011939,2]
[329969143,1718881831826,-150.0,0.00011999,2]
[329969145,1718881831835,-150.0,0.00011999,2]
[329969146,1718881831849,-2306.58998941,0.00012,2]
[329969147,1718881831861,-6690.0,0.00012,2]
[329969148,1718881831873,-12611.14076,0.00012,2]
[329969175,1718881832593,-6614.4,0.00012,2]
[329969177,1718881832605,-1777.86925059,0.00012,2]
[329969180,1718881832616,-1337.68,0.00012598,2]
[329969182,1718881832626,-250.0,0.00012737,2]
[329969184,1718881832635,-250.0,0.00012737,2]
[329969186,1718881832644,-7592.43,0.00012752,2]
[329969188,1718881832654,-1012.52743573,0.00012769,2]
[329969190,1718881832663,-5740.1311925,0.00012806,2]
[329969192,1718881832674,-1201.70587702,0.00012806,2]
[329969194,1718881832686,-16958.16293048,0.00012806,2]
[329969196,1718881832696,-200.0,0.00012829,2]
[329969197,1718881832706,-425.06,0.00013016,2]
[329969198,1718881832715,-178.46,0.00013146,2]
[329969199,1718881832724,-990.53093843,0.00013186,2]
[329969200,1718881832734,-210.0,0.00013199,2]
[329969201,1718881832743,-1038.74,0.000134,2]
[329969202,1718881832752,-27924.17,0.000134,2]
[329969203,1718881832762,-200.0,0.000134,4]
[329969204,1718881832771,-6506.3999,0.00013498,2]
[329969205,1718881832780,-500.0,0.000135,4]
[329969206,1718881832789,-725.15226105,0.00013598,2]
[329969207,1718881832798,-160.60339165,0.00013598,2]
[329969208,1718881832807,-499.99,0.00013598,2]
[329969209,1718881832817,-1000.0,0.00013598,2]
[329969210,1718881832826,-6353.3694,0.00013598,2]
[329969211,1718881832835,-68801.26117832,0.00013598,2]
[329969223,1718881837826,-1676.31891087,0.00012806,2]
[329969224,1718881837839,-8044.35086559,0.00012806,2]
[329969225,1718881837850,-39968.04222168,0.00013598,2]
[329969226,1718881837859,-2499.9999,0.00013598,2]
[329969228,1718881837869,-700.0,0.000136,4]
[329969229,1718881837878,-486.06,0.00013688,2]
[329969230,1718881837887,-486.06,0.00013688,2]
[329969231,1718881837897,-500.0,0.00013698,2]
[329969232,1718881837907,-500.0,0.00013698,2]
[329969233,1718881837917,-339.03963095,0.00013698,2]
[329969234,1718881837927,-500.0,0.00013698,2]
[329969236,1718881837937,-500.0,0.00013698,2]
[329969237,1718881837946,-500.0,0.00013698,2]
[329969238,1718881837956,-500.0,0.00013698,2]
[329969239,1718881837965,-500.0,0.00013698,2]
[329969240,1718881837975,-500.0,0.00013698,2]
[329969241,1718881837984,-500.0,0.00013698,2]
[329969242,1718881837994,-740.83,0.00013698,2]
[329969243,1718881838003,-500.0,0.00013698,2]
[329969244,1718881838013,-500.0,0.00013698,2]
[329969245,1718881838023,-500.0,0.00013698,2]
[329969246,1718881838033,-500.0,0.00013698,2]
[329969247,1718881838042,-542.6,0.00013698,2]
[329969248,1718881838108,-500.0,0.00013698,2]
[329969249,1718881838118,-542.86,0.00013698,2]
[329969250,1718881838128,-500.0,0.00013698,2]
[329969251,1718881838138,-500.0,0.00013698,2]
[329969252,1718881838149,-500.0,0.00013698,2]
[329969253,1718881838159,-500.0,0.00013698,2]
[329969254,1718881838168,-500.0,0.00013698,2]
[329969255,1718881838178,-500.0,0.00013698,2]
[329969256,1718881838188,-500.0,0.00013698,2]
[329969257,1718881838197,-500.0,0.00013698,2]
[329969258,1718881838207,-500.0,0.00013698,2]
[329969259,1718881838216,-500.0,0.00013698,2]
[329969260,1718881838225,-500.0,0.00013698,2]
[329969261,1718881838235,-155.35101044,0.00013698,2]
[329969262,1718881838244,-500.0,0.00013698,2]
[329969263,1718881838253,-500.0,0.00013698,2]
[329969264,1718881838263,-500.0,0.00013698,2]
[329969265,1718881838273,-500.0,0.00013698,2]
[329969266,1718881838282,-534.14029066,0.00013698,2]
[329969267,1718881838292,-500.0,0.00013698,2]
[329969268,1718881838301,-500.0,0.00013698,2]
[329969269,1718881838311,-500.0,0.00013698,2]
[329969270,1718881838320,-500.0,0.00013698,2]
[329969271,1718881838330,-500.0,0.00013698,2]
[329969272,1718881838340,-500.0,0.00013698,2]
[329969273,1718881838352,-500.0,0.00013698,2]
[329969274,1718881838362,-819.29,0.00013698,2]
[329969275,1718881838371,-500.0,0.00013698,2]
[329969276,1718881838380,-565.55,0.00013698,2]
[329969277,1718881838390,-500.0,0.00013698,2]
[329969278,1718881838400,-500.0,0.00013698,2]
[329969279,1718881838409,-500.0,0.00013698,2]
[329969280,1718881838420,-500.0,0.00013698,2]
[329969281,1718881838433,-500.0,0.00013698,2]
[329969282,1718881838442,-545.01,0.00013698,2]
[329969283,1718881838452,-500.0,0.00013698,2]
[329969284,1718881838462,-500.0,0.00013698,2]
[329969285,1718881838473,-500.0,0.00013698,2]
[329969286,1718881838482,-500.0,0.00013698,2]
[329969287,1718881838492,-500.0,0.00013698,2]
[329969288,1718881838502,-500.0,0.00013698,2]
[329969289,1718881838513,-500.0,0.00013698,2]
[329969291,1718881838523,-266.74035233,0.00013698,2]
[329969293,1718881838533,-500.0,0.00013698,2]
[329969295,1718881838542,-500.0,0.00013698,2]
[329969297,1718881838553,-500.0,0.00013698,2]
[329969298,1718881838565,-500.0,0.00013698,2]
[329969300,1718881838577,-500.0,0.00013698,2]
[329969302,1718881838587,-500.0,0.00013698,2]
[329969304,1718881838600,-500.0,0.00013698,2]
[329969306,1718881838611,-500.0,0.00013698,2]
[329969308,1718881838621,-500.0,0.00013698,2]
[329969310,1718881838630,-500.0,0.00013698,2]
[329969312,1718881838640,-500.0,0.00013698,2]
[329969314,1718881838650,-500.0,0.00013698,2]
[329969316,1718881838659,-500.0,0.00013698,2]
[329969318,1718881838668,-500.0,0.00013698,2]
[329969320,1718881838678,-500.0,0.00013698,2]
[329969322,1718881838687,-500.0,0.00013698,2]
[329969324,1718881838697,-560.8,0.00013698,2]
[329969325,1718881838706,-500.0,0.00013698,2]
[329969327,1718881838716,-240.68070881,0.00013698,2]
[329969329,1718881838726,-500.0,0.00013698,2]
[329969331,1718881838736,-500.0,0.00013698,2]
[329969333,1718881838748,-500.0,0.00013698,2]
[329969335,1718881838758,-500.0,0.00013698,2]
[329969337,1718881838767,-525.57,0.00013698,2]
[329969339,1718881838778,-500.0,0.00013698,2]
[329969341,1718881838790,-500.0,0.00013698,2]
[329969343,1718881838800,-500.0,0.00013698,2]
[329969346,1718881838810,-631.85,0.00013698,2]
[329969347,1718881838820,-519.57002477,0.00013698,2]
[329969349,1718881838830,-500.0,0.00013698,2]
[329969351,1718881838839,-500.0,0.00013698,2]
[329969354,1718881838850,-500.0,0.00013698,2]
[329969355,1718881838860,-500.0,0.00013698,2]
[329969358,1718881838870,-500.0,0.00013698,2]
[329969359,1718881838879,-500.0,0.00013698,2]
[329969361,1718881838888,-500.0,0.00013698,2]
[329969363,1718881838897,-500.0,0.00013698,2]
[329969365,1718881838907,-500.0,0.00013698,2]
[329969367,1718881838916,-500.0,0.00013698,2]
[329969369,1718881838926,-500.0,0.00013698,2]
[329969371,1718881838935,-500.0,0.00013698,2]
[329969374,1718881838947,-500.0,0.00013698,2]
[329969375,1718881838957,-500.0,0.00013698,2]
[329969377,1718881838967,-500.0,0.00013698,2]
[329969379,1718881838976,-547.32,0.00013698,2]
[329969381,1718881838985,-500.0,0.00013698,2]
[329969383,1718881838995,-500.0,0.00013698,2]
[329969385,1718881839004,-500.0,0.00013698,2]
[329969387,1718881839014,-500.0,0.00013698,2]
[329969389,1718881839024,-500.0,0.00013698,2]
[329969391,1718881839034,-500.0,0.00013698,2]
[329969393,1718881839044,-500.0,0.00013698,2]
[329969395,1718881839054,-500.0,0.00013698,2]
[329969397,1718881839063,-578.4,0.00013698,2]
[329969399,1718881839072,-500.0,0.00013698,2]
[329969401,1718881839082,-500.0,0.00013698,2]
[329969403,1718881839092,-500.0,0.00013698,2]
[329969405,1718881839106,-500.0,0.00013698,2]
[329969407,1718881839116,-519.79,0.00013698,2]
[329969409,1718881839125,-150.0,0.00013698,2]
[329969411,1718881839135,-500.0,0.00013698,2]
[329969413,1718881839146,-500.0,0.00013698,2]
[329969415,1718881839156,-500.0,0.00013698,2]
[329969417,1718881839166,-500.0,0.00013698,2]
[329969419,1718881839175,-500.0,0.00013698,2]
[329969421,1718881839185,-500.0,0.00013698,2]
[329969423,1718881839196,-500.0,0.00013698,2]
[329969425,1718881839206,-500.0,0.00013698,2]
[329969427,1718881839215,-500.0,0.00013698,2]
[329969429,1718881839225,-500.0,0.00013698,2]
[329969431,1718881839234,-500.0,0.00013698,2]
[329969433,1718881839245,-500.0,0.00013698,2]
[329969435,1718881839255,-500.0,0.00013698,2]
[329969437,1718881839265,-500.0,0.00013698,2]
[329969439,1718881839274,-500.0,0.00013698,2]
[329969441,1718881839285,-500.0,0.00013698,2]
[329969443,1718881839296,-500.0,0.00013698,2]
[329969445,1718881839305,-500.0,0.00013698,2]
[329969447,1718881839316,-500.0,0.00013698,2]
[329969449,1718881839327,-500.0,0.00013698,2]
[329969451,1718881839337,-500.0,0.00013698,2]
[329969453,1718881839347,-500.0,0.00013698,2]
[329969455,1718881839360,-500.0,0.00013698,2]
[329969457,1718881839371,-603.07,0.00013698,2]
[329969459,1718881839380,-500.0,0.00013698,2]
[329969461,1718881839389,-500.0,0.00013698,2]
[329969462,1718881839400,-500.0,0.00013698,2]
[329969465,1718881839410,-500.0,0.00013698,2]
[329969467,1718881839421,-500.0,0.00013698,2]
[329969468,1718881839431,-500.0,0.00013698,2]
[329969470,1718881839446,-500.0,0.00013698,2]
[329969472,1718881839456,-500.0,0.00013698,2]
[329969474,1718881839467,-500.0,0.00013698,2]
[329969476,1718881839477,-567.84,0.00013698,2]
[329969478,1718881839487,-500.0,0.00013698,2]
[329969480,1718881839497,-500.0,0.00013698,2]
[329969482,1718881839507,-195.87779589,0.00013698,2]
[329969484,1718881839519,-500.0,0.00013698,2]
[329969486,1718881839529,-519.88,0.00013698,2]
[329969488,1718881839540,-500.0,0.00013698,2]
[329969490,1718881839550,-604.68,0.00013698,2]
[329969492,1718881839560,-500.0,0.00013698,2]
[329969494,1718881839570,-381.97846913,0.00013698,2]
[329969496,1718881839580,-500.0,0.00013698,2]
[329969498,1718881839591,-500.0,0.00013698,2]
[329969500,1718881839606,-1064.35,0.00013698,2]
[329969502,1718881839616,-500.0,0.00013698,2]
[329969503,1718881839627,-577.21,0.00013698,2]
[329969504,1718881839637,-881.89,0.00013698,2]
[329969505,1718881839649,-500.0,0.00013698,2]
[329969506,1718881839660,-500.0,0.00013698,2]
[329969507,1718881839670,-500.0,0.00013698,2]
[329969508,1718881839680,-652.74,0.00013698,2]
[329969509,1718881839690,-656.83,0.00013698,2]
[329969510,1718881839700,-500.0,0.00013698,2]
[329969512,1718881839711,-500.0,0.00013698,2]
[329969514,1718881839721,-500.0,0.00013698,2]
[329969516,1718881839731,-1812.98,0.00013698,2]
[329969518,1718881839741,-500.0,0.00013698,2]
[329969519,1718881839751,-500.0,0.00013698,2]
[329969521,1718881839761,-725.49,0.00013698,2]
[329969523,1718881839770,-500.0,0.00013698,2]
[329969525,1718881839780,-500.0,0.00013698,2]
[329969527,1718881839790,-500.0,0.00013698,2]
[329969529,1718881839799,-500.0,0.00013698,2]
[329969531,1718881839809,-500.0,0.00013698,2]
[329969533,1718881839820,-500.0,0.00013698,2]
[329969535,1718881839829,-568.83,0.00013698,2]
[329969537,1718881839840,-1571.95,0.00013698,2]
[329969539,1718881839852,-1046.93,0.00013698,2]
[329969541,1718881839862,-729.33,0.00013698,2]
[329969545,1718881839872,-500.0,0.00013698,2]
[329969548,1718881839882,-1711.24,0.00013698,2]
[329969552,1718881839892,-2538.55,0.00013698,2]
[329969554,1718881839902,-500.0,0.00013698,2]
[329969555,1718881839912,-500.0,0.00013698,2]
[329969557,1718881839922,-500.0,0.00013698,2]
[329969559,1718881839932,-500.0,0.00013698,2]
[329969561,1718881839942,-3342.57,0.00013698,2]
[329969563,1718881839952,-1124.23,0.00013698,2]
[329969566,1718881839961,-500.0,0.00013698,2]
[329969567,1718881839971,-954.53,0.00013698,2]
[329969569,1718881839980,-598.33,0.00013698,2]
[329969571,1718881839990,-541.3,0.00013698,2]
[329969574,1718881839999,-500.0,0.00013698,2]
[329969576,1718881840008,-500.0,0.00013698,2]
[329969577,1718881840018,-1391.87,0.00013698,2]
[329969579,1718881840028,-478.7982504,0.00013698,2]
[329969581,1718881840038,-6116.71,0.00013698,2]
[329969584,1718881840047,-7017.38,0.00013698,2]
[329969585,1718881840056,-1247.35,0.00013698,2]
[329969587,1718881840066,-500.0,0.00013698,2]
[329969589,1718881840075,-500.0,0.00013698,2]